{"text_format":"3","workbook":"xlsx","n_sheets":3,"sheets":["附件1","附件2","Sheet3"],"not_rendered":{"defined_names":6},"read":"whole","date_system":"1900"}

{"sheet":"附件1","index":0,"n_rows":23,"n_cols":8,"rows_kept":23,"merged":[[1,0,1,7],[2,0,2,7],[3,5,3,6],[4,0,5,0],[4,1,5,1],[4,2,5,2],[4,3,5,3],[4,4,4,6],[4,7,5,7]]}
["附件1."]
["綦江区2025年部分财政衔接推进乡村振兴补助资金项目计划调减情况表"]
[]
[{"$nulls":5},"单位：万元"]
["序号","项目名称","主要建设内容","绩效目标","本次资金调减情况",null,null,"原投资计划文件"]
[{"$nulls":4},"中央","市级","区级"]
[1,"2025年綦江区糯玉米订单农业补贴项目","与村集体签订并完成订单收购协议的企业，订单价格不低于2元/千克，收购总量500吨以上，补助200元/吨。","促进产销对接，保障农户收益。带动村集体增收超80万元，推动农业产业规模化发展。",50,null,null,"綦乡振〔2024〕18号"]
[2,"2025年綦江区横山镇回龙村肖家林片区老旧农房整治及配套基础设施项目","对回龙村肖家林片区老旧农房进行排危整治、庭院整治修复及农村基础配套设施建设。具体建设内容以实施方案准。","整治50余人人居生活环境，改善出行条件",{"v":15,"d":"15.00"},null,null,"綦乡振〔2024〕18号"]
[3,"2025年綦江区三角镇乐升坪村老旧农房整治及配套基础设施项目","对乐升坪村沿线老旧农房进行排危整治、庭院整治修复及农村基础配套设施建设。具体建设内容以实施方案为准。","改善280户840人，其中脱贫户6户18人人居环境条件。",{"v":22,"d":"22.00"},null,null,"綦乡振〔2024〕18号"]
[4,"2025年綦江区三角镇永安村、徐家村老旧农房整治及配套基础设施项目","对红岩村沿线老旧农房进行排危整治、庭院整治修复及农村基础配套设施建设。具体建设内容以实施方案为准。","改善65户210人，其中脱贫户5户15人人居环境条件。",{"v":4,"d":"4.00"},null,null,"綦乡振〔2024〕18号"]
[5,"2025年綦江区横山镇新寨村思林片区老旧农房整治及配套基础设施项目","对新寨村思林片区老旧农房进行排危整治、庭院整治修复及农村基础配套设施建设。具体建设内容以实施方案为准。","整治80余人人居生活环境，改善出行条件",{"v":7,"d":"7.00"},null,null,"綦乡振〔2024〕18号"]
[6,"2025年綦江区通惠街道老旧农房整治及配套基础设施项目","对浸水社区进行危房排危整治及农村基础配套设施建设。具体建设内容以实施方案为准。","改善2公里20余户100余人居民生产生活条件，提高老百姓生产生活质量。",{"v":5,"d":"5.00"},null,null,"綦乡振〔2024〕18号"]
[7,"2025年綦江区三角镇乐升坪村老旧农房整治及配套基础设施项目","对乐升坪村沿线老旧农房进行排危整治、庭院整治修复及农村基础配套设施建设。具体建设内容以实施方案为准。","改善280户840人，其中脱贫户6户18人人居环境条件。",null,8,null,"綦乡振〔2024〕18号"]
[8,"2025年綦江区横山镇天台村何家湾、大坪村丰子山片区老旧农房整治及配套基础设施项目","对天台村何家湾、大坪村丰子山片区沿线老旧农房进行排危整治、庭院整治修复及农村基础配套设施建设。具体建设内容以实施方案为准。","整治200余人人居生活环境，改善出行条件",null,7,null,"綦乡振〔2024〕18号"]
[9,"2025年綦江区“两类群体”就业创业补贴项目","实施“两类群体”就业创业补贴项目，为“两类群体”提低增收助力。","针对稳定就业3个月及以上的、灵活就业或创业且全年收入超过8000元的“两类群体”，由当事人提供有效凭据，经镇村审核后，给予每人每年3000元的就业创业补贴。",null,100,null,"綦乡振〔2025〕5号"]
[10,"2025年綦江区加工产业发展补助项目","新增萝卜精深加工企业2家、新增糯玉米精深加工企业1家。","带动当地经济发展，促进萝卜、糯玉米产值亩均提升30%以上。",null,50,null,"綦乡振〔2025〕5号"]
[11,"2025年綦江区农产品品牌培育与推广","加强全区农业品牌培育，开展农产品质量安全检测，参照2024年市级下达检测目标任务，需完成定量监测农产品920个，其中例行监测农产品样品数量765个，监督抽检农产品样品数量155个。保障农产品质量安全的同时，通过品牌打造，实现优质优价。做好“土特产”品牌打造及宣传，推荐我区“土特产”参加节会展会，并通过网络、媒体、平面广告、互联网直播带货、制作农产品消费指南（宣传画册）等宣传展示綦江特色农产品，推动产销对接。对获得绿色食品、有机食品、重庆市名牌农产品等市级以上农业品牌新认证及续展的进行补助、宣传。","提高我区“土特产”品牌的知名度，市级以上有效期内农业品牌数量稳定在70个；我区食用农产品质量安全抽检合格率在98%以上，不发生重大农产品质量安全事故。",null,40,null,"綦乡振〔2025〕5号"]
[12,"2025年綦江区城乡居民医保资助项目","巩固拓展脱贫人口医疗保障成果，降低因病返贫致贫风险，坚决守住不发生规模性返贫底线。","预计参保人员21106，以最后实际参保人数为准。",null,1.3895,null,"綦乡振〔2025〕5号"]
[13,"2025年綦江区畜禽养殖保险","保障畜禽健康养殖，抵御畜禽疫病灾害。","预计参保数量≥1万只。",null,null,40,"綦乡振〔2025〕5号"]
[14,"2025年綦江区农业保险\n（种植业）","在全区范围内开展种植业保险，提高抗灾能力，推动种植业生产稳定增效。预计：\n1.全区蔬菜保险0.6万亩；区级补贴14.4元/亩。\n2.水稻、玉米保险16万亩；区级补贴7.65/亩\n3.油菜保险1.1万亩；区级补贴3元/亩\n4.脱贫户自交部分2万亩；区级补贴5.625元亩\n5.大户自交部分2万亩；区级补贴8.1元亩\n6.柑橘灾害险5000亩；区级补贴3万元。\n以实际参保面积结算。","该项目实施后，带动全区3万多户，11万人，其中脱贫户和监测对象0.7万户。",null,null,120,"綦乡振〔2025〕5号"]
[15,"2025年綦江区产业帮扶补助\n项目","优质稻2亩及以上、200元/亩；其它粮油（油菜、高粱、玉米、大豆、花生等）5亩及以上、200元/亩；生猪1头及以上、500元/头；蔬菜5亩及以上、200元/亩；山羊10只及以上、300元/只；肉兔常年存栏200只以上、30元/只；水产养殖水面5亩及以上、400元/亩；鸡鸭鹅家禽三类总数40只及以上、10元/只。支持庭院经济发展。","产业发展补助≥1000户建卡贫困群众。",null,null,300,"綦乡振〔2025〕5号"]
[16,"2025年綦江区公益性岗位开发项目","开发全日制公益性岗位和非全日制公益性岗位为脱贫人口或监测对象提供更多就业机会。","为500余名脱贫人口或监测人口提供就业岗位，增加家庭收入。",null,null,200,"綦乡振〔2025〕5号"]
[17,"合计",null,null,{"$f":"SUM(E7:E22)","v":103},{"$f":"SUM(F7:F22)","v":206.3895},{"$f":"SUM(G7:G22)","v":660}]

{"sheet":"附件2","index":1,"n_rows":24,"n_cols":11,"rows_kept":24,"merged":[[1,0,1,10],[3,0,4,0],[3,1,4,1],[3,2,4,2],[3,3,4,3],[3,4,4,4],[3,5,4,5],[3,6,3,9],[3,10,4,10],[23,1,23,2]]}
["附件2"]
["綦江区2025年第三批财政衔接推进乡村振兴补助资金项目计划下达情况明细表"]
[{"$nulls":10},"单位：万元"]
["序号","项目主管部门","项目业主单位","项目名称","主要建设内容","绩效目标","本次资金安排情况",{"$nulls":3},"区级财政预算文号"]
[{"$nulls":6},"中央","市级","区级","合计"]
[1,"区农业农村委","区农业农村委","2024年綦江区“到綦江”第四届重庆市大学生乡村振兴创意大赛","在东溪镇、赶水镇、三角镇、石壕镇等四个镇街，分设计类、营销类、策划类等三个类别，开展景观环境设计、“土特产”伴手礼设计、赶水草蔸萝卜产品设计，黄桃产业宣传推广，农文旅创意项目策划，乡村治理与文化活动策划等。","通过“到綦江”第四届重庆市大学生乡村振兴创意大赛项目内容；项目实施后，可推动解决东溪镇及东溪镇永乐村、赶水镇及赶水镇石房村、三角镇及三角镇红岩村、石壕镇及石壕镇万隆村等在当前乡村发展过程中面临的镇村发展创意设计、农特产品包装设计、乡村治理文化活动策划中的具体问题。",null,null,19,{"$f":"SUM(G6:I6)","v":19},"綦江财发〔2025〕1号"]
[2,"区农业农村委","区农业农村委","2025年綦江区种植业补贴项目","1.采购萝卜种子3万亩；\n2.集中成片发展种植米粉专用稻100亩以上；\n3.种植四季青3000亩；\n4.种植珠芽蓼2000亩；\n5.种植野菊花1000亩。\n以实际建设内容为准。","该项目实施后，带动全区2万多户，7万余人，其中脱贫户和监测对象0.3万户。",4.5,null,null,4.5,"綦江财发〔2025〕1号"]
[3,"区农业农村委","区农业农村委","2025年綦江区就业帮扶车间\n建设","新认定就业帮扶车间1个。","通过新建就业帮扶车间，吸纳脱贫人口就业，增强带贫能力，提高脱贫人口（含监测对象）收入。",null,11.5,null,11.5,"綦江财发〔2025〕222号"]
[4,"区农业农村委","古南街道办事处","2025年綦江区古南街道长乐社区提水灌溉项目","维修山坪塘2口，需更换水泵一个，安装抽水管道dn160mmPE管1.6MPa长度为480m。","带动周边农户10余人就近务工，月增收1000余元。同时解决约260余亩耕地灌溉用水问题。",null,20.3895,null,20.3895,"綦江财发〔2025〕1号、綦江财发〔2025〕222号"]
[5,"区农业农村委","文龙街道办事处","2025年綦江区文龙街道春灯村野菊花产业加工设备采购项目","采购杀青机2台、烘干机8台、脱花机40台、筛花机2台、电动手推车10台、移动伸缩蓬450平米、地面提升（20cm高钢架+九夹板铺设）400平米。","保障年产200余万斤鲜野菊花的有效加工，支撑150余万元产值的实现。",null,50,null,50,"綦江财发〔2025〕222号"]
[6,"区农业农村委","三江街道办事处","2025年綦江区三江街道照贵村樱桃大棚产业发展项目","建设樱桃园15亩大棚产业发展。","预计村集体经济增收5—10万元/年。",33,null,null,33,"綦江财发〔2025〕1号"]
[7,"区农业农村委","石角镇人民政府","2024年綦江区石角镇新农村\n数商兴农项目","购置1台智能茶叶质选机；购置1套石角镇数商兴农茶叶大数据展示平台。","项目建成后，可提高工作效率，降低人工投入，进一步提高茶叶品质，增加茶叶销售收入，带动集体增收2万元。数商兴农茶叶大数据展示平台为石角镇茶叶产业的数字化转型和高质量发展提供有力支持。",null,24.5,null,24.5,"綦江财发〔2025〕222号"]
[8,"区农业农村委","打通镇人民政府","2025年綦江区打通镇水稻、羊肚菌、贡菜多茬轮作加工项目","1.羊肚菌种植土地改良250亩，吹角村水稻种植后引进业主种植羊肚菌；\n2.贡菜种子购买及育苗1000亩（下沟村集中示范片300亩，并带动全镇农户种植700亩）；\n3.新建贡菜加工生产线3套，其中购置日加工10吨贡菜去皮机、开条机各3套，购置输送平台3台，购置日烘干5吨烘干设备3套；\n4.新建彩钢棚800平方米。","该项目实施后，预计每年增加村集体经济收入291.5万元，每年增加集体经济利润34万元。720户2820人受益，其中脱贫户和监测户330户1192人，并带动全镇羊肚菌、贡菜等产业发展。",null,null,131.55,131.55,"綦江财发〔2025〕1号"]
[9,"区农业农村委","石壕镇人民政府","2025年綦江区石壕镇皂泥村\n茶叶加工车间建设项目","1.基础设施：利用集体闲置办公楼改建720㎡红茶、绿茶车间各一个、成品茶储存冻库一间，茶叶加工经营用房两间；2.机器设备：购置绿茶、红茶加工线各一条；3.包装制作：茶叶包装1800份。","实现集体经营性收入增加5万元以上。",null,49.5,null,49.5,"綦江财发〔2025〕222号"]
[10,"区农业农村委","永新镇人民政府","2025年綦江区永新镇升平现代农业产业园菌菇产业社会化服务\n提升项目","购置菌菇产业生产设备，以村集体投建固定资产入股（或出租）的形式与业主合作，打造升平现代农业产业园菌菇产业社会化服务专业队伍：\n1.小挖机（12型立派R319）1台；\n2.开沟机（重庆美澳3TG-4A型）12台；\n3.柴油抽水机（4寸）18台；\n4.羊肚菌烘干机（304不锈钢，mK-8外形尺寸4200mmx2850mmx2500mm，额定总功率Ac380V9.69KW）7台；\n5.农用打孔机（4cm钻头）14台；\n6.手推打药机（300L）1台；\n7.柴油微耕机6台。","该项目实施后，将有力推动升平现代农业产业园菌菇产业发展，吸引更多业主入驻，为周边群众增加土地流转收入500元/年，为村集体带来菌菇产业社会化服务收益，村集体每年可分红或获得租金收益3万元以上。",null,null,48.8,48.8,"綦江财发〔2025〕1号"]
[11,"区农业农村委","三角镇人民政府","2025年綦江区三角镇佛子寺村人居环境整治及配套基础设施项目\n（第一期）","安装太阳能公路路灯200盏；","改善190户750人出行条件。",null,null,31.5,31.5,"綦江财发〔2025〕1号"]
[12,"区农业农村委","三角镇人民政府","2025年綦江区三角镇望石村花椒油加工项目","1.购置花椒油加工设备一套（TLJ-120环保筛提料机（含电机）、80新型重力环保筛 每小时1000斤（含底座支架）、TLJ-120直提料机（配炒锅、含电机）、100型环保电炒锅200斤/次、TLJ-240提料机（斜提、含电机）、6YL-131-Z熟榨螺旋榨油机含电机（大压力、出油王）。 每小时处理原料500-600斤。不锈钢毛油桶（含滤网）、90型多功能水化离心一体机、不锈钢接油槽（带盖）、SLYJ-180双冷双泵冷油机、全自动叶片式气压滤油机、0.5T不锈钢油罐、ZXG-2全自动双头流量计灌装机（含压盖机、空压机、输送带、质检灯、动力头）、GSY-A8称重式灌装机、250Z全自动黄曲霉毒素降解机、高温油泵、绞龙枯饼输送带、安装调试（含连接件及辅材）、穿线管、线缆等、管道、阀门、焊材等、运费）；\n2.水电安装（水：32管50米、水表1个、管件若干；电：电线25平方300米、电线10平方200米、电表1个、闸刀开关）。","建设完成后望石村及周边村,通过专业合作社+业主+农户模式，项目建成后，每年能加工花椒油100吨，解决三角当地1500亩花椒产业的销售问题，固定收入1.5万元以上。",null,46,null,46,"綦江财发〔2025〕222号"]
[13,"区农业农村委","郭扶镇人民政府","2025年綦江区郭扶镇粮食烘干\n储存项目","1.原塔式烘干设备高16米、宽约5米圆柱形烘干设备从原三塘小学搬迁烘干设备至原龙泉小学。\n2.附属设施改建：强弱电线路铺设、供排水基础设施维护。\n3.建设储存厂房：建设约1200平方钢架结构，高18米、长约30米、宽约40米钢架结构透明树脂瓦厂房。\n4.硬化 C30混凝土地面，约1200平方。\n5.安装路灯70盏左右（每50米左右一盏）。","达到日烘干粮食3吨，解决50余人就近就地就业。",null,null,49.5,49.5,"綦江财发〔2025〕1号"]
[14,"区农业农村委","篆塘镇人民政府","2025年綦江区篆塘镇渡沙村稻虾养殖基地建设项目","1.塘沿及步道建设。新建环形生产步道长约4000米，路宽0.9～0.99米，厚10cm，（结合实际情况修建）采用机拌C20混凝土浇筑铺设。\n2.渠道整治。清淤约长约550米，厚约0.5米，宽约2米；M7.5砂浆淌沟底长约550米，均宽约2.5米，厚5cm；两侧机拌C20混凝土浇筑沟壁长约550米*2，厚10cm，高2米。","项目实施后使乡村产业基础设施提档升级，增加集体经济及群众收入。",null,null,49.8,49.8,"綦江财发〔2025〕1号"]
[15,"区农业农村委","丁山镇人民政府","2025年綦江区丁山镇观佛村\n产业配套设施建设项目","坝坎、坝尖60米长、厚0.1米，不锈钢栏杆40米长，清淤600立方米，放水主管网（PE75管）2公里。","通过该项目的实施，促进种植业主和农户收益分别提升10%和5%。",null,4.5,20.35,24.85,"綦江财发〔2025〕1号、綦江财发〔2025〕222号"]
[16,"区农业农村委","扶欢镇人民政府","2024年綦江区扶欢镇石足村\n血豆腐加工厂建设项目","1.新建血豆腐加工厂房150㎡；\n2.新建污水净化池1个18m³；\n3.新建浸泡池1个30m³；\n4.购血豆腐加工机器设备1套：包含切肉机、拌馅机、丸子成型机、烟熏炉、磨浆煮浆一体机、双盒成型机、真空包装机、蒸箱、蒸汽发生器等。","项目实施后，可解决石足村大豆销售问题，受益群众120户，其中脱贫户和监测对象93人。",null,null,27.5,27.5,"綦江财发〔2025〕1号"]
[17,"区农业农村委","扶欢镇人民政府","2025年綦江区扶欢镇文峰村农业产业社会化服务项目","购置自旋翼无人机1架、机载烟条散播器1台、机载电荷释放器1台、机载高压水雾散播器1台","设备购买后应用于农业产业生产社会化服务，增加村集体收入。",null,null,282,282,"綦江财发〔2025〕1号"]
[18,"区农业农村委","中峰镇人民政府","2025年綦江区中峰镇中峰村杨春坝稻渔养殖发展项目","1.32亩稻渔田块标准化改造，建设1米宽、15cm厚C20混凝土生产道600米。\n2.安装1800平米双边丝护栏网，布设12套LED诱虫灯，安装10套高清监控，铺设DN110-PE灌溉管道1100米，铺设DN200-PVC排水管道200米。\n3.新建5个C25钢筋混凝土瘦身鱼池。","项目实现年利润约15万元，村集体分红不低于3万元。",65.5,null,null,{"$f":"SUM(G23:I23)","v":65.5},"綦江财发〔2025〕1号"]
[19,"合计",{"$nulls":4},{"$f":"SUM(G6:G23)","v":103},{"$f":"SUM(H6:H23)","v":206.3895},{"$f":"SUM(I6:I23)","v":660},{"$f":"SUM(G24:I24)","v":969.3895}]

{"sheet":"Sheet3","index":2,"n_rows":0,"n_cols":0,"rows_kept":0}